bitfinex-derivatives/quotes_BTCF0:USTF0_20250416
["timestamp","ask_amount","ask_price","bid_price","bid_amount"]
[1744763301288,0.2878249,83515.0,83514.0,0.1197499]
[1744763301493,0.0524,83515.0,83514.0,0.4805499]
[1744763301692,0.1721485,83515.0,83514.0,0.3608]
[1744763301891,0.2280285,83515.0,83514.0,0.4805499]
[1744763302197,0.2280285,83515.0,83514.0,0.3608]
[1744763302391,0.2280285,83515.0,83514.0,0.36088]
[1744763303890,0.2310285,83515.0,83514.0,0.36088]
[1744763304398,0.2280285,83515.0,83514.0,0.36088]
[1744763304599,0.2320285,83515.0,83514.0,0.3608]
[1744763304794,0.2320285,83515.0,83514.0,0.36088]
[1744763305000,0.2320285,83515.0,83514.0,0.3608]
[1744763305594,0.2319485,83515.0,83514.0,0.3608]
[1744763305894,0.1197514,83513.0,83512.0,0.00017965]
[1744763306293,0.2319514,83513.0,83512.0,0.00017965]
[1744763306693,0.2319514,83513.0,83512.0,0.00025965]
[1744763307498,0.2359514,83513.0,83512.0,0.00025965]
[1744763308103,0.1197743,83497.0,83496.0,0.08804]
[1744763308298,0.1197757,83496.0,83495.0,0.0555]
[1744763308505,0.1197786,83494.0,83487.0,0.0573]
[1744763308697,0.1197786,83494.0,83493.0,0.3696263]
[1744763308900,0.2319786,83494.0,83493.0,0.3696263]
[1744763309204,0.2319786,83494.0,83493.0,0.3608]
[1744763309402,0.2319786,83494.0,83493.0,0.36088]
[1744763310003,0.2319786,83494.0,83493.0,0.3608]
[1744763310206,0.1197901,83486.0,83484.0,0.1197922]
[1744763310507,0.1197901,83486.0,83481.0,0.140548]
[1744763310702,0.1197901,83486.0,83485.0,0.48077115]
[1744763310703,0.2310901,83486.0,83485.0,0.48077115]
[1744763311804,0.2310901,83486.0,83485.0,0.53317115]
[1744763312411,0.2310901,83486.0,83485.0,0.46977965]
[1744763313501,0.2310901,83486.0,83485.0,0.58957115]
[1744763313697,0.2310901,83486.0,83485.0,0.46977965]
[1744763313903,0.2310901,83486.0,83485.0,0.58957115]
[1744763314105,0.2310901,83486.0,83485.0,0.46977965]
[1744763314497,0.2310901,83486.0,83485.0,0.36097965]
[1744763314701,0.2330901,83486.0,83485.0,0.36097965]
[1744763315101,0.2330901,83486.0,83485.0,0.36105965]
[1744763316604,0.2330901,83486.0,83485.0,0.41335965]
[1744763317404,0.2330901,83486.0,83485.0,0.36105965]
[1744763319705,0.2330901,83486.0,83485.0,0.36097965]
[1744763319906,0.2330901,83486.0,83485.0,0.36105965]
[1744763322414,0.0584,83486.0,83485.0,0.48085115]
[1744763322605,0.002,83486.0,83485.0,0.48085115]
[1744763322805,0.1217901,83486.0,83485.0,0.59185115]
[1744763323001,0.1217901,83486.0,83485.0,0.47205965]
[1744763323214,0.1782901,83486.0,83485.0,0.47205965]
[1744763324607,0.1782901,83486.0,83485.0,0.59185115]
[1744763325006,0.1762901,83486.0,83485.0,0.59185115]
[1744763325203,0.1782901,83486.0,83485.0,0.59185115]
[1744763325402,0.1782901,83486.0,83485.0,0.47205965]
[1744763326107,0.1782901,83486.0,83485.0,0.59185115]
[1744763326312,0.002,83486.0,83485.0,0.59185115]
[1744763327511,0.1197851,83490.0,83489.0,0.1197858]
[1744763327917,0.1197851,83490.0,83489.0,0.2293858]
[1744763328105,0.1197851,83490.0,83489.0,0.1096]
[1744763328306,0.1730851,83490.0,83489.0,0.1096]
[1744763328510,0.1730851,83490.0,83489.0,0.2293858]
[1744763328903,0.1197851,83490.0,83489.0,0.2293858]
[1744763330320,0.1087851,83490.0,83489.0,0.2293858]
[1744763331025,0.0533,83492.0,83491.0,0.1197829]
[1744763331318,0.179673,83494.0,83493.0,0.1197786]
[1744763331505,0.2395634,83494.0,83493.0,0.4805786]
[1744763332414,0.00017965,83502.0,83494.0,0.0598893]
[1744763332614,0.00017965,83502.0,83499.0,0.0598856]
[1744763332817,0.0598756,83514.0,83499.0,0.0598856]
[1744763332818,0.37331985,83518.0,83514.0,0.1197499]
[1744763333316,0.00010801,83520.0,83519.0,0.1197428]
[1744763333505,0.00010801,83520.0,83519.0,0.4805428]
[1744763333712,0.1197356,83524.0,83523.0,0.1197362]
[1744763334017,0.1197356,83524.0,83523.0,0.01872309]
[1744763334404,0.0531,83524.0,83523.0,0.119737]
[1744763334608,0.00010801,83525.0,83524.0,0.1197356]
[1744763334819,0.11984221,83525.0,83524.0,0.0527]
[1744763335118,0.17294221,83525.0,83524.0,0.1059]
[1744763336021,0.17594221,83525.0,83524.0,0.12432827]
[1744763336314,0.05320801,83525.0,83524.0,0.24406387]
[1744763336512,0.05520801,83525.0,83524.0,0.24406387]
[1744763337605,0.05520801,83525.0,83524.0,0.2256356]
[1744763339115,0.05520801,83525.0,83524.0,0.24322727]
[1744763340817,0.05520801,83525.0,83524.0,0.12349167]
[1744763341007,0.05520801,83525.0,83524.0,0.24322727]
[1744763341207,0.002,83525.0,83524.0,0.24322727]
[1744763341419,0.00065378,83538.0,83537.0,0.0598582]
[1744763341614,0.09364,83542.0,83540.0,0.119712]
[1744763341819,0.09364,83542.0,83541.0,0.1717112]
[1744763342117,0.2133498,83542.0,83541.0,0.052]
[1744763342417,0.2134298,83542.0,83541.0,0.052]
[1744763342714,0.09372,83542.0,83541.0,0.052]
[1744763342919,0.09372,83542.0,83541.0,0.2283112]
[1744763342920,8e-05,83542.0,83541.0,0.2283112]
[1744763343110,0.059839,83565.0,83549.0,0.1196998]
[1744763343314,0.00010801,83551.0,83549.0,0.4804998]
[1744763343510,0.00010801,83551.0,83549.0,0.4981741]
[1744763343716,0.00010801,83551.0,83549.0,0.6067741]
[1744763344618,0.11987795,83550.0,83549.0,0.3784743]
[1744763344817,0.23037795,83550.0,83549.0,0.0176743]
[1744763345416,0.23037795,83550.0,83549.0,0.1196998]
[1744763345822,0.23037795,83550.0,83549.0,0.2239998]
[1744763346031,0.23037795,83550.0,83549.0,0.1043]
[1744763346224,0.1196998,83549.0,83548.0,0.3608]
[1744763346518,0.1196998,83549.0,83548.0,0.4805012]
[1744763346818,0.1744998,83549.0,83548.0,0.4805012]
[1744763347412,0.1744998,83549.0,83548.0,0.5887012]
[1744763349418,0.1764998,83549.0,83548.0,0.5887012]
[1744763349820,0.1764998,83549.0,83548.0,0.3608]
[1744763351914,0.0568,83549.0,83548.0,0.4805012]
[1744763352114,0.1765798,83549.0,83548.0,0.4805012]
[1744763352313,0.1765798,83549.0,83548.0,0.3608]
[1744763352521,0.2316798,83549.0,83548.0,0.3608]
[1744763352921,0.1197012,83548.0,83547.0,0.0529]
[1744763353221,0.1197012,83548.0,83547.0,0.4137]
[1744763353427,0.2301012,83548.0,83547.0,0.5334026]
[1744763354126,0.2301012,83548.0,83547.0,0.5853026]
[1744763354718,0.2321012,83548.0,83547.0,0.5853026]
[1744763356717,0.1770012,83548.0,83547.0,0.5853026]
[1744763358527,0.1770012,83548.0,83547.0,0.4656]
[1744763358731,0.1770012,83548.0,83547.0,0.1048]
[1744763359030,0.1770012,83548.0,83547.0,0.2245026]
[1744763360729,0.1770012,83548.0,83547.0,0.1048]
[1744763361234,0.1770012,83548.0,83547.0,0.2245026]
[1744763361431,0.0573,83548.0,83547.0,0.24168474]
[1744763361632,0.1217012,83548.0,83547.0,0.24168474]
[1744763361825,0.002,83548.0,83547.0,0.24168474]
[1744763362025,0.1217012,83548.0,83547.0,0.24168474]
[1744763362426,0.00208,83548.0,83547.0,0.24168474]
[1744763362635,0.002,83548.0,83547.0,0.24168474]
[1744763363032,0.00208,83548.0,83547.0,0.24168474]
[1744763363328,0.00208,83548.0,83547.0,1.18168474]
[1744763363936,0.00208,83548.0,83547.0,0.24168474]
[1744763364136,0.1217812,83548.0,83547.0,0.24168474]
[1744763364530,0.1749812,83548.0,83547.0,0.24168474]
[1744763365036,0.1749812,83548.0,83547.0,0.60248474]
[1744763365430,0.05528,83548.0,83547.0,0.60248474]
[1744763366335,0.1749812,83548.0,83547.0,0.60248474]
[1744763366526,0.1749812,83548.0,83547.0,0.48278214]
[1744763366736,0.1749812,83548.0,83547.0,0.60248474]
[1744763367035,0.2278812,83548.0,83547.0,0.60248474]
[1744763368040,0.2278812,83548.0,83547.0,0.5853026]
[1744763368553,0.35818,83548.0,83533.0,0.36097965]
[1744763368745,0.1197084,83543.0,83542.0,0.3608]
[1744763368938,0.1197141,83539.0,83538.0,0.1197147]
[1744763369242,0.119717,83537.0,83536.0,0.1795767]
[1744763369937,0.233717,83537.0,83536.0,0.1795767]
[1744763370143,0.233717,83537.0,83536.0,0.19543773]
[1744763370331,0.233717,83537.0,83536.0,0.01586103]
[1744763371441,0.1197184,83536.0,83535.0,0.1197196]
[1744763371843,0.1197213,83534.0,83533.0,0.48070135]
[1744763372045,0.1197213,83534.0,83533.0,0.36097965]
[1744763372440,0.2284213,83534.0,83533.0,0.36097965]
[1744763373342,0.2284213,83534.0,83533.0,0.36297965]
[1744763373542,0.1197213,83534.0,83533.0,0.36297965]
[1744763373841,8e-05,83548.0,83547.0,0.1197026]
[1744763374141,0.00017965,83550.0,83547.0,0.7814506]
[1744763374436,0.00017965,83550.0,83549.0,0.1196998]
[1744763374639,0.00017965,83550.0,83548.0,0.2296998]
[1744763374842,0.1196998,83549.0,83548.0,0.11]
[1744763375038,0.1197012,83548.0,83547.0,0.3608]
[1744763375439,0.2302012,83548.0,83547.0,0.3608]
[1744763376641,0.2322012,83548.0,83547.0,0.3608]
[1744763380249,0.0562,83548.0,83547.0,0.4805026]
[1744763380645,0.1759012,83548.0,83547.0,0.49622955]
[1744763380838,0.1759812,83548.0,83547.0,0.49622955]
[1744763381838,0.1759812,83548.0,83547.0,0.60702955]
[1744763382744,0.1759812,83548.0,83547.0,0.48732695]
[1744763383046,0.2283812,83548.0,83547.0,0.48732695]
[1744763383246,0.2283812,83548.0,83547.0,0.37652695]
[1744763383957,0.2823812,83548.0,83547.0,0.37652695]
[1744763384449,0.2823812,83548.0,83547.0,0.3608]
[1744763389052,0.2283812,83548.0,83547.0,0.3608]
[1744763389252,0.2283012,83548.0,83547.0,0.3608]
[1744763389452,0.2283812,83548.0,83547.0,0.3608]
[1744763390344,0.1759812,83548.0,83547.0,0.3608]
[1744763390545,0.1759812,83548.0,83547.0,0.4805026]
[1744763390838,0.05628,83548.0,83547.0,0.4805026]
[1744763391246,0.1759012,83548.0,83547.0,0.5889026]
[1744763391448,0.1759812,83548.0,83547.0,0.5889026]
[1744763391854,0.00208,83548.0,83547.0,0.5889026]
[1744763392049,0.1217812,83548.0,83547.0,0.5889026]
[1744763392255,0.1217012,83548.0,83547.0,0.5889026]
[1744763392457,0.1217812,83548.0,83547.0,0.5889026]
[1744763393656,0.1217012,83548.0,83547.0,0.5889026]
[1744763393957,0.1217812,83548.0,83547.0,0.5889026]
[1744763396047,0.1217812,83548.0,83547.0,0.4692]
[1744763396247,0.2307812,83548.0,83547.0,0.4692]
[1744763396555,0.1781812,83548.0,83547.0,0.3608]
[1744763397365,0.05848,83548.0,83547.0,0.4805026]
[1744763397554,0.1781812,83548.0,83547.0,0.4805026]
[1744763397756,0.1781812,83548.0,83547.0,0.5894026]
[1744763399259,0.00208,83548.0,83547.0,0.5894026]
[1744763399661,0.1217012,83548.0,83547.0,0.5894026]
[1744763399862,0.1217812,83548.0,83547.0,0.5894026]
[1744763400469,0.00208,83548.0,83547.0,0.5894026]
[1744763400675,0.002,83548.0,83547.0,0.5894026]
[1744763401009,0.1217812,83548.0,83547.0,0.5894026]
[1744763401276,0.1217812,83548.0,83547.0,0.3608]
[1744763401577,0.1746812,83548.0,83547.0,0.3608]
[1744763401761,0.2272812,83548.0,83547.0,0.3608]
[1744763402162,0.2272812,83548.0,83533.0,0.00017965]
[1744763402163,0.1795769,83538.0,83537.0,0.1197168]
[1744763402368,0.2394354,83538.0,83537.0,0.1197168]
[1744763402674,0.1197184,83536.0,83535.0,0.1662598]
[1744763403169,0.1723184,83536.0,83535.0,0.1662598]
[1744763404285,0.1723184,83536.0,83535.0,0.1682598]
[1744763405182,0.1723184,83536.0,83535.0,0.0558]
[1744763405372,0.2263184,83536.0,83535.0,0.002]
[1744763405675,0.2798184,83536.0,83535.0,0.002]
[1744763406080,0.2798984,83536.0,83535.0,0.3628]
[1744763406380,0.2798984,83536.0,83535.0,0.002]
[1744763407279,0.2798984,83536.0,83533.0,0.00017965]
[1744763407280,0.1197213,83534.0,83533.0,0.00017965]
[1744763407673,0.2275213,83534.0,83533.0,0.00017965]
[1744763408072,0.2275213,83534.0,83522.0,0.00891979]
[1744763408073,0.1197442,83518.0,83509.0,0.3608]
[1744763408275,0.1197542,83511.0,83510.0,0.000108]
[1744763408484,0.1197542,83511.0,83510.0,0.1198637]
[1744763408776,0.1197557,83510.0,83509.0,0.3608]
[1744763408973,0.1719557,83510.0,83509.0,0.3608]
[1744763410378,0.1719557,83510.0,83509.0,0.36088]
[1744763410582,0.1739557,83510.0,83509.0,0.36088]
[1744763412077,0.1719557,83510.0,83509.0,0.36088]
[1744763412377,0.1729557,83510.0,83509.0,0.36088]
[1744763412973,0.1739557,83510.0,83509.0,0.36088]
[1744763413569,0.1739557,83510.0,83509.0,0.3608]
[1744763413769,0.1197671,83502.0,83501.0,0.00017953]
[1744763414675,0.2266671,83502.0,83501.0,0.00017953]
[1744763414875,0.2266671,83502.0,83501.0,0.00025953]
[1744763415274,0.2276671,83502.0,83501.0,0.00025953]
[1744763415876,0.1197729,83498.0,83497.0,0.00514985]
[1744763416386,0.1197729,83498.0,83497.0,0.00522985]
[1744763417282,0.1197729,83498.0,83497.0,0.00822985]
[1744763417875,0.1207729,83498.0,83497.0,0.00522985]
[1744763419488,0.1227729,83498.0,83497.0,0.00522985]
[1744763420078,0.1227729,83498.0,83497.0,0.00514985]
[1744763420284,0.2362729,83498.0,83497.0,0.00514985]
[1744763422888,0.3287129,83498.0,83497.0,0.00514985]
[1744763425689,0.3170129,83498.0,83497.0,0.00514985]
[1744763427984,0.20894,83498.0,83497.0,0.00514985]
[1744763428185,0.2152129,83498.0,83497.0,0.12492415]
[1744763428381,0.1227729,83498.0,83497.0,0.12492415]
[1744763428596,0.0598815,83505.0,83497.0,0.10714985]
[1744763428787,0.0598815,83505.0,83504.0,0.3608]
[1744763430189,0.0618815,83505.0,83504.0,0.3608]
[1744763432396,0.0598815,83505.0,83504.0,0.3608]
[1744763433095,0.1631815,83505.0,83504.0,0.36088]
[1744763434194,0.1631815,83505.0,83504.0,0.3608]
[1744763435099,0.1631815,83505.0,83504.0,0.36088]
[1744763438893,0.1105815,83505.0,83504.0,0.36088]
[1744763439100,0.0598815,83505.0,83504.0,0.36088]
[1744763440595,0.1111815,83505.0,83504.0,0.36088]
[1744763441105,0.1197714,83499.0,83498.0,0.0479]
[1744763441307,0.1197714,83499.0,83497.0,0.00514985]
[1744763441308,0.1197729,83498.0,83497.0,0.00514985]
[1744763441601,0.1710729,83498.0,83497.0,0.00514985]
[1744763441802,0.1710729,83498.0,83497.0,0.00522985]
[1744763443799,0.5328729,83498.0,83497.0,0.00522985]
[1744763444199,0.5840729,83498.0,83497.0,0.00522985]
[1744763445394,0.5327729,83498.0,83497.0,0.00522985]
[1744763446092,0.5846729,83498.0,83497.0,0.00522985]
[1744763447503,0.5846729,83498.0,83497.0,5e-08]
[1744763451199,0.5846729,83498.0,83497.0,8.005e-05]
[1744763454801,0.5327729,83498.0,83497.0,8.005e-05]
[1744763456707,0.5834729,83498.0,83497.0,8.005e-05]
[1744763460402,0.4815729,83498.0,83497.0,8.005e-05]
[1744763461504,0.5341729,83498.0,83497.0,8.005e-05]
[1744763461702,0.1197844,83490.0,83489.0,0.04808965]
[1744763461917,0.4805844,83490.0,83489.0,0.04808965]
[1744763462107,0.5886844,83490.0,83489.0,0.10907965]
[1744763462306,0.5886844,83490.0,83489.0,0.10915965]
[1744763463317,0.5886844,83490.0,83489.0,0.11015965]
[1744763470312,0.5360844,83490.0,83489.0,0.11015965]
[1744763470506,0.4805844,83490.0,83489.0,0.11015965]
[1744763473012,0.1197844,83490.0,83489.0,0.47095965]
[1744763474115,0.00017965,83498.0,83489.0,0.47095965]
[1744763474318,0.11995255,83498.0,83497.0,0.4805743]
[1744763474711,0.00030581,83509.0,83497.0,0.4805743]
[1744763474712,0.00016,83509.0,83504.0,0.119763]
[1744763474914,0.00026801,83509.0,83508.0,0.4805585]
[1744763475110,0.0598699,83522.0,83508.0,0.5208]
[1744763475310,0.0598693,83522.0,83521.0,0.1197399]
[1744763475505,0.06001391,83524.0,83521.0,0.3608]
[1744763475710,0.119737,83523.0,83522.0,0.16]
[1744763478814,0.120737,83523.0,83522.0,0.2797385]
[1744763481218,0.119737,83523.0,83522.0,0.2797385]
[1744763481815,0.0599481,83524.0,83523.0,0.119737]
[1744763481816,8e-05,83524.0,83523.0,0.119737]
[1744763482015,0.1198156,83524.0,83523.0,0.228437]
[1744763482210,0.1197356,83524.0,83523.0,0.228437]
[1744763482417,0.1198156,83524.0,83523.0,0.228437]
[1744763484928,0.1197356,83524.0,83523.0,0.228437]
[1744763485133,0.1197356,83524.0,83523.0,0.229437]
[1744763485329,0.1199756,83524.0,83523.0,0.229437]
[1744763487123,0.00024,83524.0,83523.0,0.229437]
[1744763487322,0.0598626,83532.0,83523.0,0.229437]
[1744763487323,0.1795763,83539.0,83538.0,0.1795697]
[1744763487526,0.0598578,83539.0,83538.0,0.6002267]
[1744763487727,0.0599378,83539.0,83538.0,0.3608]
[1744763487922,0.0599378,83539.0,83538.0,0.5254]
[1744763488416,0.0599378,83539.0,83538.0,0.4722]
[1744763488620,0.1664378,83539.0,83538.0,0.4722]
[1744763488817,0.1664378,83539.0,83538.0,0.1114]
[1744763488818,0.1674378,83539.0,83538.0,0.1114]
[1744763491022,0.1117378,83539.0,83538.0,0.1114]
[1744763491224,0.05188,83539.0,83538.0,0.2311155]
[1744763491727,0.0518,83539.0,83538.0,0.2311155]
[1744763491923,0.05188,83539.0,83538.0,0.2311155]
[1744763492833,0.1715941,83539.0,83538.0,0.2311155]
[1744763493229,0.1207941,83539.0,83538.0,0.2311155]
[1744763494332,0.00108,83539.0,83538.0,0.2311155]
[1744763494726,0.001,83539.0,83538.0,1.1711155]
[1744763494927,0.1207941,83539.0,83538.0,1.1711155]
[1744763495531,0.1207941,83539.0,83538.0,0.2311155]
[1744763495721,0.1717941,83539.0,83538.0,0.2311155]
[1744763496125,0.1717941,83539.0,83538.0,0.1114]
[1744763496525,0.2227941,83539.0,83538.0,0.1114]
[1744763496924,0.2227941,83539.0,83538.0,0.2311155]
[1744763498924,0.2227941,83539.0,83538.0,0.5919155]
[1744763499130,0.1717941,83539.0,83538.0,0.5919155]
[1744763499331,0.059852,83546.0,83545.0,0.1795568]
[1744763499530,0.0598496,83550.0,83546.0,0.1197041]
[1744763499738,0.11988225,83547.0,83546.0,0.2271041]
[1744763499937,0.11996225,83547.0,83546.0,0.2271041]
[1744763500128,0.11988225,83547.0,83546.0,0.5879041]
[1744763500437,0.11996225,83547.0,83546.0,0.5879041]
[1744763500940,0.00025965,83547.0,83546.0,0.5879041]
[1744763501138,0.00017965,83547.0,83546.0,0.5879041]
[1744763501337,0.00025965,83547.0,83546.0,0.5879041]
[1744763503834,0.11996225,83547.0,83546.0,0.5879041]
[1744763504042,0.11996225,83547.0,83535.0,0.4805198]
[1744763504043,0.00025965,83547.0,83535.0,0.4805198]
[1744763504240,0.1197184,83536.0,83535.0,0.3608]
[1744763504643,0.0598684,83524.0,83517.0,0.3608]
[1744763504839,0.1197686,83501.0,83500.0,0.3608]
[1744763505038,0.1197686,83501.0,83500.0,0.49655961]
[1744763505338,0.1197686,83501.0,83500.0,0.37686961]
[1744763505542,0.13255106,83501.0,83500.0,0.37686961]
[1744763505747,0.1197729,83498.0,83497.0,0.00514985]
[1744763506632,0.2264729,83498.0,83497.0,0.00514985]
[1744763506835,0.2264729,83498.0,83497.0,0.12492415]
[1744763507135,0.2264729,83498.0,83497.0,0.00514985]
[1744763508447,0.2264729,83498.0,83497.0,0.00714985]
[1744763509442,0.2274729,83498.0,83497.0,0.00722985]
[1744763510151,0.2274729,83498.0,83497.0,0.00522985]
[1744763510356,0.1077,83498.0,83497.0,0.00522985]
[1744763510543,0.1077,83498.0,83497.0,0.12500415]
[1744763510747,0.2274729,83498.0,83497.0,0.12500415]
[1744763510947,0.2274729,83498.0,83497.0,0.00522985]
[1744763511856,0.2274729,83498.0,83497.0,0.11312985]
[1744763512246,0.2274729,83498.0,83497.0,0.23290415]
[1744763512452,0.1207729,83498.0,83497.0,0.23290415]
[1744763512652,0.1217729,83498.0,83497.0,0.11312985]
[1744763512854,0.1217729,83498.0,83497.0,0.23290415]
[1744763513158,0.1217729,83498.0,83497.0,0.11312985]
[1744763513355,0.1217729,83498.0,83497.0,0.11412985]
[1744763513660,0.1207729,83498.0,83497.0,0.11412985]
[1744763514356,0.1207729,83498.0,83497.0,0.23390415]
[1744763514357,0.1217729,83498.0,83497.0,0.23390415]
[1744763514656,0.1217729,83498.0,83497.0,0.23290415]
[1744763515454,0.002,83498.0,83497.0,0.23290415]
[1744763515654,0.1217729,83498.0,83497.0,0.23290415]
[1744763516357,0.002,83498.0,83497.0,0.23290415]
[1744763516562,0.00017965,83509.0,83508.0,0.1197585]
[1744763516853,0.00017965,83509.0,83508.0,0.8413585]
[1744763517058,0.00017965,83509.0,83508.0,0.9424585]
[1744763517556,0.00217965,83509.0,83508.0,0.9424585]
[1744763518954,0.00517965,83509.0,83508.0,0.9424585]
[1744763521052,0.00517965,83509.0,83508.0,0.9425385]
[1744763521856,0.0598705,83521.0,83518.0,0.1796127]
[1744763522060,0.1197413,83520.0,83519.0,0.5884413]
[1744763522265,0.0598685,83523.0,83522.0,0.1197385]
[1744763522562,0.0598685,83523.0,83522.0,0.2263385]
[1744763522964,0.1118685,83523.0,83522.0,0.2263385]
[1744763523559,0.052,83523.0,83522.0,0.2263385]
[1744763523760,0.057,83523.0,83522.0,0.2263385]
[1744763525065,0.005,83523.0,83522.0,0.2263385]
[1744763525259,0.005,83523.0,83522.0,0.2363385]
[1744763525460,0.005,83523.0,83522.0,0.2913385]
[1744763525765,0.005,83523.0,83522.0,0.3014185]
[1744763526361,0.1197293,83529.0,83528.0,0.1197299]
[1744763527265,0.1197293,83529.0,83528.0,0.2224299]
[1744763527472,0.1197293,83529.0,83528.0,0.2234299]
[1744763527959,0.1197293,83529.0,83528.0,0.1037]
[1744763529066,0.1197293,83529.0,83528.0,0.0532]
[1744763529266,0.1197293,83529.0,83528.0,0.05328]
[1744763530069,0.1197293,83529.0,83528.0,0.0532]
[1744763530770,0.1197293,83529.0,83528.0,0.05328]
[1744763531166,0.1708293,83529.0,83528.0,0.05328]
[1744763531576,0.1197293,83529.0,83528.0,0.05328]
[1744763533364,0.119728,83530.0,83529.0,0.119727]
[1744763533568,0.01294763,83531.0,83530.0,0.119727]
[1744763533775,0.01294763,83531.0,83530.0,0.173127]
[1744763533776,0.00017965,83531.0,83530.0,0.173127]
[1744763533973,0.00017965,83531.0,83530.0,0.235727]
[1744763534275,0.0598491,83550.0,83545.0,0.119705]
[1744763534577,0.1067,83551.0,83546.0,0.1069]
[1744763534578,0.1197026,83547.0,83546.0,0.1069]
[1744763535070,0.1724026,83547.0,83546.0,0.1069]
[1744763535271,0.1724826,83547.0,83546.0,0.1069]
[1744763535471,0.1724026,83547.0,83546.0,0.1069]
[1744763535775,0.2244026,83547.0,83546.0,0.1069]
[1744763536088,0.10478,83547.0,83546.0,0.2266041]
[1744763536372,8e-05,83547.0,83546.0,0.2266041]
[1744763536576,0.0598499,83549.0,83546.0,0.23542808]
[1744763536776,0.00408,83547.0,83546.0,0.23542808]
[1744763537270,0.00308,83547.0,83546.0,0.23542808]
[1744763537476,0.1227826,83547.0,83546.0,0.23542808]
[1744763537867,0.1227826,83547.0,83546.0,0.11572398]
[1744763538568,0.1758826,83547.0,83546.0,0.23542808]
[1744763539172,0.1758826,83547.0,83546.0,0.06142398]
[1744763539367,0.05618,83547.0,83546.0,0.18112808]
[1744763539667,0.05618,83547.0,83546.0,0.06142398]
[1744763539868,0.05618,83547.0,83546.0,0.18112808]
[1744763540068,0.1059,83547.0,83546.0,0.18112808]
[1744763540272,0.0561,83547.0,83546.0,0.18112808]
[1744763540477,0.0561,83547.0,83546.0,0.06142398]
[1744763540677,0.05618,83547.0,83546.0,0.18112808]
[1744763540973,0.00308,83547.0,83546.0,0.18112808]
[1744763542276,0.005,83552.0,83551.0,0.1196969]
[1744763542464,0.005,83552.0,83551.0,0.4804969]
[1744763542665,0.005,83552.0,83551.0,0.5841969]
[1744763542867,0.00508,83552.0,83551.0,0.5841969]
[1744763543275,0.00908,83552.0,83551.0,0.5841969]
[1744763544875,0.1287755,83552.0,83551.0,0.3608]
[1744763545079,0.1286955,83552.0,83551.0,0.3608]
[1744763545269,0.1246955,83552.0,83551.0,0.3608]
[1744763545465,0.2285955,83552.0,83551.0,0.4804969]
[1744763546278,0.1089,83552.0,83551.0,0.4804969]
[1744763547573,0.0571,83552.0,83551.0,0.5349969]
[1744763548174,0.00608,83552.0,83551.0,0.5349969]
[1744763548383,0.00608,83552.0,83551.0,0.5884969]
[1744763548677,0.1257755,83552.0,83551.0,0.4804969]
[1744763548875,0.00608,83552.0,83551.0,0.4804969]
[1744763549675,0.006,83552.0,83551.0,0.5319969]
[1744763549879,0.00608,83552.0,83551.0,0.5319969]
[1744763550081,0.006,83552.0,83551.0,0.5824969]
[1744763550275,0.00608,83552.0,83551.0,0.5824969]
[1744763551279,0.05608,83552.0,83551.0,0.5824969]
[1744763551679,0.00017954,83555.0,83554.0,0.1196926]
[1744763551883,0.00017954,83555.0,83554.0,0.4804926]
[1744763552180,0.00017954,83555.0,83554.0,0.5837926]
[1744763552378,0.00017954,83555.0,83554.0,1.5237926]
[1744763552981,0.00117954,83555.0,83554.0,1.5237926]
[1744763553481,0.00117954,83555.0,83554.0,0.5322926]
[1744763553674,0.12087074,83555.0,83554.0,0.5322926]
[1744763553871,0.05537954,83555.0,83554.0,0.5322926]
[1744763554783,0.17507074,83555.0,83554.0,0.5322926]
[1744763555281,0.05537954,83555.0,83554.0,0.5322926]
[1744763555587,0.17507074,83555.0,83554.0,0.5322926]
[1744763555986,0.22657074,83555.0,83554.0,0.4804926]
[1744763556782,0.10687954,83555.0,83554.0,0.4804926]
[1744763556989,0.10687954,83555.0,83554.0,0.5310926]
[1744763557185,0.10687954,83555.0,83554.0,0.5834926]
[1744763557383,0.10695954,83555.0,83554.0,0.5834926]
[1744763557580,0.05267954,83555.0,83554.0,0.5834926]
[1744763557882,0.00125954,83555.0,83554.0,0.5834926]
[1744763558074,0.00117954,83555.0,83554.0,0.5834926]
[1744763558279,0.0598398,83564.0,83563.0,0.1795124]
[1744763559175,0.00019684,83565.0,83564.0,0.1196783]
[1744763559377,0.00019684,83565.0,83564.0,0.1698783]
[1744763559580,0.00017954,83572.0,83570.0,0.1196697]
[1744763559777,0.00017954,83572.0,83571.0,0.1196683]
[1744763560186,0.09256,83580.0,83577.0,0.1196597]
[1744763560378,0.00510801,83578.0,83577.0,0.4804597]
[1744763561483,0.00510801,83578.0,83577.0,0.5316597]
[1744763561882,0.10980801,83578.0,83577.0,0.5316597]
[1744763562279,0.10980801,83578.0,83577.0,0.1708597]
[1744763562781,0.10980801,83578.0,83577.0,0.8924597]
[1744763563376,0.22946621,83578.0,83577.0,0.8412597]
[1744763563576,0.22946621,83578.0,83577.0,0.7216]
[1744763563982,0.47946621,83578.0,83577.0,0.7216]
[1744763564379,0.22946621,83578.0,83577.0,0.7216]
[1744763567889,0.1196611,83576.0,83575.0,0.04786]
[1744763568390,0.1196797,83563.0,83562.0,0.0503]
[1744763568780,0.2792797,83563.0,83562.0,0.0503]
[1744763568989,0.2792797,83563.0,83562.0,0.4111]
[1744763569186,0.2792797,83563.0,83562.0,0.3608]
[1744763569486,0.2792797,83563.0,83558.0,0.000108]
[1744763569487,0.1196854,83559.0,83558.0,0.000108]
[1744763569689,0.1196854,83559.0,83554.0,0.3608]
[1744763569690,0.1196897,83556.0,83554.0,0.3608]
[1744763570187,0.2218897,83556.0,83554.0,0.3608]
[1744763570386,0.2218897,83556.0,83555.0,0.00156512]
[1744763571780,0.2218897,83556.0,83555.0,0.00356512]
[1744763572187,0.05238,83556.0,83555.0,0.22745632]
[1744763572387,8e-05,83556.0,83555.0,0.22545632]
[1744763572587,0.1196897,83556.0,83555.0,0.27695632]
[1744763572788,0.1197697,83556.0,83555.0,0.10576512]
[1744763573093,0.2242697,83556.0,83555.0,0.00256512]
[1744763573295,0.2242697,83556.0,83555.0,0.00264512]
[1744763573488,0.2242697,83556.0,83555.0,0.00364512]
[1744763574696,0.2242697,83556.0,83555.0,0.00356512]
[1744763574886,0.2242697,83556.0,83555.0,0.05494512]
[1744763575087,0.2241897,83556.0,83555.0,0.05147954]
[1744763575497,0.2241897,83556.0,83555.0,0.05286512]
[1744763577488,0.2241897,83556.0,83555.0,0.10516512]
[1744763577995,0.1719897,83556.0,83555.0,0.22485632]
[1744763578183,0.1720697,83556.0,83555.0,0.22485632]
[1744763578896,0.1720697,83556.0,83555.0,0.22585632]
[1744763579489,0.1720697,83556.0,83555.0,0.22685632]
[1744763579885,0.1720697,83556.0,83555.0,0.10716512]
[1744763580592,0.1197697,83556.0,83555.0,0.10716512]